[Event "XI Continental-ch America 2016"]
[Site "San Salvador"]
[Date "2016.05.29"]
[Round "3"]
[White "Mareco, Sandro"]
[Black "Arenas, David"]
[Result "1-0"]
[ECO "E62"]
[WhiteElo "2625"]
[BlackElo "2496"]
[PlyCount "85"]
[EventDate "2016.??.??"]
[EventCountry "ESA"]
[TimeControl "40/5400+30:1800+30"]
[WhiteClock "0:30:19"]
[BlackClock "0:04:03"]

1. Nf3 {[%emt 0:00:00]} Nf6 {[%emt 0:09:43]} 2. c4 {[%emt 0:00:00]} g6 {
[%emt 0:00:09]} 3. d4 {[%emt 0:00:00]} Bg7 {[%emt 0:00:08]} 4. g3 {[%emt 0:00:
00]} O-O {[%emt 0:00:41]} 5. Bg2 {[%emt 0:00:00]} d6 {[%emt 0:00:42]} 6. O-O {
[%emt 0:00:00]} Nc6 {[%emt 0:00:47]} 7. Nc3 {[%emt 0:00:01]} Bg4 {[%emt 0:00:
14]} 8. Be3 {[%emt 0:05:44]} Bxf3 {[%emt 0:17:44]} 9. Bxf3 {[%emt 0:06:10]} Nd7
{[%emt 0:00:10]} 10. Bg2 {[%emt 0:00:14]} e5 {[%emt 0:00:21]} 11. dxe5 {
[%emt 0:01:23]} Ndxe5 {[%emt 0:05:07]} 12. Qa4 {[%emt 0:01:42]} Nd7 {[%emt 0:
07:53]} 13. Qc2 {[%emt 0:02:55]} Nce5 {[%emt 0:03:50]} 14. b3 {[%emt 0:01:02]}
c6 {[%emt 0:01:11]} 15. Rad1 {[%emt 0:01:33]} Nf6 {[%emt 0:03:03]} 16. Qd2 {
[%emt 0:08:08]} Qa5 {[%emt 0:04:15]} 17. Bg5 {[%emt 0:08:22]} Ned7 {[%emt 0:15:
15]} 18. Bf4 {[%emt 0:05:22]} Ne5 {[%emt 0:04:55]} 19. Bg5 {[%emt 0:11:46]}
Neg4 {[%emt 0:03:26]} 20. Na4 {[%emt 0:03:31]} Qf5 {[%emt 0:10:14]} 21. e4 {
[%emt 0:02:30]} Qe5 {[%emt 0:03:57]} 22. f3 {[%emt 0:04:47]} b5 {[%emt 0:00:48]
} 23. Bf4 {[%emt 0:00:17]} Qe6 {[%emt 0:04:37]} 24. cxb5 {[%emt 0:00:32]} cxb5
{[%emt 0:00:09]} 25. Nc3 {[%emt 0:00:06]} Ne5 {[%emt 0:01:21]} 26. Qxd6 {
[%emt 0:00:57]} Qxd6 {[%emt 0:01:34]} 27. Rxd6 {[%emt 0:00:05]} Ne8 {[%emt 0:
00:41]} 28. Rd5 {[%emt 0:00:09]} b4 {[%emt 0:00:11]} 29. Bxe5 {[%emt 0:06:59]}
bxc3 {[%emt 0:00:01]} 30. Bxg7 {[%emt 0:00:12]} Nxg7 {[%emt 0:00:01]} 31. Rc1 {
[%emt 0:00:07]} Rac8 {[%emt 0:00:10]} 32. Rd3 {[%emt 0:00:05]} Rfd8 {[%emt 0:
00:03]} 33. Rcxc3 {[%emt 0:00:08]} Ne6 {[%emt 0:00:12]} 34. Rxc8 {[%emt 0:02:
52]} Rxc8 {[%emt 0:00:01]} 35. Rd2 {[%emt 0:00:08]} Rc1+ {[%emt 0:00:17]} 36.
Kf2 {[%emt 0:00:05]} Kg7 {[%emt 0:00:17]} 37. f4 {[%emt 0:00:24]} a5 {[%emt 0:
00:09]} 38. e5 {[%emt 0:00:36]} Nc5 {[%emt 0:00:08]} 39. Bd5 {[%emt 0:00:36]}
Kf8 {[%emt 0:00:32]} 40. Ke3 {[%emt 0:00:27]} Ke7 {[%emt 0:00:03]} 41. Kd4 {
[%emt 0:30:26]} Na6 {[%emt 0:31:51]} 42. Bc4 {[%emt 0:00:20]} Nb4 {[%emt 0:00:
06]} 43. Ke4 1-0

[Event "XI Continental-ch America 2016"]
[Site "San Salvador"]
[Date "2016.05.29"]
[Round "3"]
[White "Flores, Diego"]
[Black "Perez, Matias"]
[Result "1-0"]
[ECO "D58"]
[WhiteElo "2592"]
[BlackElo "2437"]
[PlyCount "57"]
[EventDate "2016.??.??"]
[EventCountry "ESA"]
[TimeControl "40/5400+30:1800+30"]
[WhiteClock "0:13:29"]
[BlackClock "0:08:39"]

1. d4 {[%emt 0:00:28]} d5 {[%emt 0:00:00]} 2. c4 {[%emt 0:00:30]} e6 {[%emt 0:
02:11]} 3. Nc3 {[%emt 0:01:27]} Be7 {[%emt 0:00:08]} 4. Nf3 {[%emt 0:02:28]}
Nf6 {[%emt 0:00:08]} 5. Bg5 {[%emt 0:00:52]} h6 {[%emt 0:00:10]} 6. Bh4 {
[%emt 0:00:35]} O-O {[%emt 0:00:28]} 7. e3 {[%emt 0:00:47]} b6 {[%emt 0:00:22]}
8. Rc1 {[%emt 0:02:18]} Bb7 {[%emt 0:01:02]} 9. Bxf6 {[%emt 0:04:25]} Bxf6 {
[%emt 0:00:06]} 10. cxd5 {[%emt 0:00:05]} exd5 {[%emt 0:00:05]} 11. Bd3 {
[%emt 0:01:43]} c5 {[%emt 0:08:38]} 12. O-O {[%emt 0:00:40]} cxd4 {[%emt 0:08:
52]} 13. Nxd4 {[%emt 0:01:30]} Nc6 {[%emt 0:07:28]} 14. Ba6 {[%emt 0:38:32]}
Bxa6 {[%emt 0:13:16]} 15. Nxc6 {[%emt 0:00:07]} Qe8 {[%emt 0:04:39]} 16. Nxd5 {
[%emt 0:00:37]} Bxf1 {[%emt 0:01:22]} 17. Nxf6+ {[%emt 0:00:34]} gxf6 {[%emt 0:
00:06]} 18. Kxf1 {[%emt 0:00:58]} Qe4 {[%emt 0:10:33]} 19. b3 {[%emt 0:03:42]}
Rfe8 {[%emt 0:01:49]} 20. h3 {[%emt 0:05:09]} Kh7 {[%emt 0:08:23]} 21. Rc4 {
[%emt 0:01:00]} Qf5 {[%emt 0:01:16]} 22. Kg1 {[%emt 0:04:40]} Rac8 {[%emt 0:07:
35]} 23. Rf4 {[%emt 0:01:08]} Qg6 {[%emt 0:07:45]} 24. Qd7 {[%emt 0:06:49]} Rg8
{[%emt 0:04:10]} 25. g3 {[%emt 0:06:05]} Rce8 {[%emt 0:02:00]} 26. Kg2 {
[%emt 0:02:42]} Rxe3 {[%emt 0:02:37]} 27. Rg4 {[%emt 0:00:25]} Rd3 {[%emt 0:00:
06]} 28. Qe7 {[%emt 0:00:31]} Qh5 {[%emt 0:00:06]} 29. Qe4+ {[%emt 0:00:14]}
1-0

[Event "XI Continental-ch America 2016"]
[Site "San Salvador"]
[Date "2016.05.29"]
[Round "3"]
[White "Juarez, Carlos"]
[Black "Morovic Fernandez, Ivan"]
[Result "0-1"]
[ECO "A49"]
[WhiteElo "2417"]
[BlackElo "2573"]
[PlyCount "130"]
[EventDate "2016.??.??"]
[EventCountry "ESA"]
[TimeControl "40/5400+30:1800+30"]
[WhiteClock "0:18:16"]
[BlackClock "0:04:47"]

1. Nf3 Nf6 2. d4 g6 3. g3 Bg7 4. Bg2 O-O 5. O-O c6 6. b3 d6 7. c4 Nbd7 8. Bb2
Re8 {[%emt 0:11:55]} 9. Nc3 {[%emt 0:12:13]} e5 {[%emt 0:02:38]} 10. e4 {
[%emt 0:01:12]} exd4 {[%emt 0:07:06]} 11. Nxd4 {[%emt 0:00:07]} Nc5 {[%emt 0:
00:07]} 12. Qc2 {[%emt 0:03:46]} a5 {[%emt 0:00:25]} 13. Rad1 {[%emt 0:00:50]}
Qb6 {[%emt 0:03:41]} 14. Nde2 {[%emt 0:06:37]} a4 {[%emt 0:04:14]} 15. Nc1 {
[%emt 0:02:24]} a3 {[%emt 0:11:25]} 16. Ba1 {[%emt 0:01:40]} Nfxe4 {[%emt 0:03:
42]} 17. Nxe4 {[%emt 0:00:26]} Bxa1 {[%emt 0:00:21]} 18. Nxd6 {[%emt 0:00:25]}
Rd8 {[%emt 0:05:22]} 19. Nxc8 {[%emt 0:08:50]} Raxc8 {[%emt 0:00:15]} 20. Nd3 {
[%emt 0:00:15]} Bd4 {[%emt 0:06:37]} 21. Nxc5 {[%emt 0:00:13]} Bxc5 {[%emt 0:
00:53]} 22. Bf3 {[%emt 0:02:32]} Rxd1 {[%emt 0:09:28]} 23. Rxd1 {[%emt 0:01:51]
} Rd8 {[%emt 0:00:17]} 24. Rxd8+ {[%emt 0:04:45]} Qxd8 {[%emt 0:00:05]} 25. Qc3
{[%emt 0:00:17]} Qd6 {[%emt 0:00:18]} 26. Kg2 {[%emt 0:02:47]} Bb4 {[%emt 0:12:
38]} 27. Qe3 {[%emt 0:03:12]} Qf6 {[%emt 0:00:39]} 28. Qe2 {[%emt 0:05:40]} Kg7
{[%emt 0:15:19]} 29. Be4 {[%emt 0:00:41]} Qd4 {[%emt 0:01:38]} 30. Qd3 {
[%emt 0:03:53]} Qb2 {[%emt 0:01:34]} 31. Qc2 {[%emt 0:00:48]} Qd4 {[%emt 0:02:
41]} 32. Qd3 {[%emt 0:01:12]} Qa1 {[%emt 0:00:24]} 33. Qb1 {[%emt 0:00:13]} Qe5
{[%emt 0:00:49]} 34. Bc2 {[%emt 0:06:52]} Qd4 {[%emt 0:00:59]} 35. Qd1 {
[%emt 0:00:20]} Qb2 {[%emt 0:00:13]} 36. Bb1 {[%emt 0:00:05]} Bc5 {[%emt 0:00:
40]} 37. Qc2 {[%emt 0:00:41]} Qd4 {[%emt 0:00:40]} 38. Qe2 {[%emt 0:01:07]} f5
{[%emt 0:01:13]} 39. Qe3 {[%emt 0:10:37]} Qxe3 {[%emt 0:00:37]} 40. fxe3 {
[%emt 0:00:03]} Bxe3 {[%emt 0:00:28]} 41. b4 {[%emt 0:31:39]} Kf6 {[%emt 0:01:
18]} 42. b5 {[%emt 0:00:00]} c5 {[%emt 0:13:11]} 43. Kf3 {[%emt 0:00:00]} Bg1 {
[%emt 0:03:28]} 44. Kg2 {[%emt 0:00:00]} Bd4 {[%emt 0:01:02]} 45. Kf3 {[%emt 0:
00:00]} Ke5 {[%emt 0:02:32]} 46. Bc2 {[%emt 0:00:00]} Bg1 {[%emt 0:01:13]} 47.
Kg2 {[%emt 0:00:00]} Be3 {[%emt 0:00:13]} 48. h4 {[%emt 0:00:00]} Kd4 {[%emt 0:
00:49]} 49. Bb3 {[%emt 0:00:00]} Kd3 {[%emt 0:01:15]} 50. Kf3 {[%emt 0:00:24]}
h6 {[%emt 0:00:52]} 51. g4 {[%emt 0:04:48]} f4 {[%emt 0:00:33]} 52. g5 {
[%emt 0:01:59]} hxg5 {[%emt 0:01:16]} 53. hxg5 {[%emt 0:00:03]} b6 {[%emt 0:00:
22]} 54. Bd1 {[%emt 0:01:18]} Kxc4 {[%emt 0:01:44]} 55. Bc2 {[%emt 0:00:04]}
Kxb5 {[%emt 0:01:06]} 56. Bxg6 {[%emt 0:00:02]} c4 {[%emt 0:04:21]} 57. Be8+ {
[%emt 0:04:10]} Kc5 {[%emt 0:00:04]} 58. g6 {[%emt 0:00:15]} Bd4 {[%emt 0:00:
04]} 59. Kxf4 {[%emt 0:00:15]} b5 {[%emt 0:00:34]} 60. Kf3 {[%emt 0:01:44]} b4
{[%emt 0:00:19]} 61. g7 {[%emt 0:00:17]} Bxg7 {[%emt 0:00:05]} 62. Bg6 {
[%emt 0:00:02]} b3 {[%emt 0:00:49]} 63. Bb1 {[%emt 0:00:06]} c3 {[%emt 0:00:47]
} 64. Ke2 {[%emt 0:00:32]} c2 {[%emt 0:00:18]} 65. Bxc2 {[%emt 0:00:02]} bxa2 {
[%emt 0:00:07]} 0-1

[Event "XI Continental-ch America 2016"]
[Site "San Salvador"]
[Date "2016.05.29"]
[Round "3"]
[White "Gonzalez, Bernal"]
[Black "Lenderman, Aleksandr"]
[Result "0-1"]
[ECO "A40"]
[WhiteElo "2476"]
[BlackElo "2614"]
[PlyCount "68"]
[EventDate "2016.??.??"]
[EventCountry "ESA"]
[TimeControl "40/5400+30:1800+30"]
[WhiteClock "0:02:35"]
[BlackClock "0:24:56"]

1. d4 {[%emt 0:03:21]} e6 {[%emt 0:00:22]} 2. c4 {[%emt 0:00:42]} b6 {[%emt 0:
00:06]} 3. e4 {[%emt 0:01:10]} Bb7 {[%emt 0:00:04]} 4. f3 {[%emt 0:00:12]} f5 {
[%emt 0:01:45]} 5. exf5 {[%emt 0:06:48]} Nh6 {[%emt 0:01:53]} 6. Be3 {[%emt 0:
02:47]} Nxf5 {[%emt 0:00:40]} 7. Bf2 {[%emt 0:00:04]} Bb4+ {[%emt 0:08:18]} 8.
Nc3 {[%emt 0:02:53]} O-O {[%emt 0:00:18]} 9. Qb3 {[%emt 0:09:53]} Be7 {[%emt 0:
07:16]} 10. O-O-O {[%emt 0:01:34]} Bh4 {[%emt 0:02:29]} 11. Qc2 {[%emt 0:08:29]
} Qg5+ {[%emt 0:06:26]} 12. Kb1 {[%emt 0:00:15]} Bxf2 {[%emt 0:00:08]} 13. Qxf2
{[%emt 0:00:02]} Ne3 {[%emt 0:01:11]} 14. Qd2 {[%emt 0:03:33]} Na6 {[%emt 0:11:
22]} 15. Re1 {[%emt 0:17:03]} Qg6+ {[%emt 0:03:12]} 16. Kc1 {[%emt 0:00:08]}
Nxf1 {[%emt 0:00:53]} 17. Rxf1 {[%emt 0:00:03]} c5 {[%emt 0:02:21]} 18. dxc5 {
[%emt 0:06:12]} Nxc5 {[%emt 0:00:35]} 19. Rd1 {[%emt 0:04:25]} d5 {[%emt 0:04:
23]} 20. b4 {[%emt 0:01:00]} Na6 {[%emt 0:02:19]} 21. b5 {[%emt 0:03:55]} Nc5 {
[%emt 0:00:58]} 22. cxd5 {[%emt 0:00:14]} Bxd5 {[%emt 0:02:38]} 23. Nh3 {
[%emt 0:04:59]} Rac8 {[%emt 0:07:46]} 24. Kb2 {[%emt 0:01:15]} Bxf3 {[%emt 0:
05:04]} 25. gxf3 {[%emt 0:01:11]} Rxf3 {[%emt 0:00:07]} 26. Ng5 {[%emt 0:07:56]
} Rd3 {[%emt 0:00:42]} 27. Qc2 {[%emt 0:06:12]} Rxc3 {[%emt 0:03:13]} 28. Qxg6
{[%emt 0:00:04]} Na4+ {[%emt 0:00:04]} 29. Kb1 {[%emt 0:00:02]} hxg6 {[%emt 0:
00:04]} 30. Rd4 {[%emt 0:05:09]} R3c4 {[%emt 0:04:16]} 31. Nxe6 {[%emt 0:01:44]
} Nc3+ {[%emt 0:00:08]} 32. Kb2 {[%emt 0:00:06]} Nxb5 {[%emt 0:00:04]} 33. Rd7
{[%emt 0:00:49]} Rb4+ {[%emt 0:00:55]} 34. Ka1 {[%emt 0:00:15]} Na3 {[%emt 0:
00:04]} 0-1

[Event "XI Continental-ch America 2016"]
[Site "San Salvador"]
[Date "2016.05.29"]
[Round "3"]
[White "Kovalyov, Anton"]
[Black "Duran, Sergio"]
[Result "1-0"]
[ECO "A14"]
[WhiteElo "2602"]
[BlackElo "2287"]
[PlyCount "45"]
[EventDate "2016.??.??"]
[EventCountry "ESA"]
[TimeControl "40/5400+30:1800+30"]
[WhiteClock "1:13:29"]
[BlackClock "0:26:54"]

1. c4 e6 2. g3 d5 3. Bg2 Nf6 4. Nf3 Be7 5. O-O O-O 6. d4 b6 7. cxd5 exd5 8. Nc3
Bb7 9. Bf4 Nbd7 {[%emt 0:12:35]} 10. Rc1 {[%emt 0:03:11]} c5 {[%emt 0:03:07]}
11. e3 {[%emt 0:03:12]} Ne4 {[%emt 0:01:10]} 12. h4 {[%emt 0:01:02]} Nxc3 {
[%emt 0:05:54]} 13. bxc3 {[%emt 0:00:15]} c4 {[%emt 0:02:33]} 14. a4 {[%emt 0:
04:41]} Bc6 {[%emt 0:01:40]} 15. Nd2 {[%emt 0:01:12]} Qc8 {[%emt 0:01:06]} 16.
e4 {[%emt 0:01:46]} dxe4 {[%emt 0:05:12]} 17. Nxc4 {[%emt 0:00:15]} Qa6 {
[%emt 0:01:26]} 18. Ne3 {[%emt 0:00:07]} Qxa4 {[%emt 0:02:11]} 19. Qxa4 {
[%emt 0:09:03]} Bxa4 {[%emt 0:01:01]} 20. Bxe4 {[%emt 0:00:05]} Rad8 {[%emt 0:
18:43]} 21. Ra1 {[%emt 0:02:29]} b5 {[%emt 0:02:26]} 22. Bc7 {[%emt 0:00:16]}
Rc8 {[%emt 0:15:02]} 23. Nd5 {[%emt 0:00:27]} 1-0

[Event "XI Continental-ch America 2016"]
[Site "San Salvador"]
[Date "2016.05.29"]
[Round "3"]
[White "Liang, Awonder"]
[Black "Pichot, Alan"]
[Result "1/2-1/2"]
[ECO "B42"]
[WhiteElo "2410"]
[BlackElo "2532"]
[PlyCount "136"]
[EventDate "2016.??.??"]
[EventCountry "ESA"]
[TimeControl "40/5400+30:1800+30"]

1. e4 c5 2. Nf3 e6 3. d4 cxd4 4. Nxd4 a6 5. Bd3 Ne7 6. O-O Nbc6 7. Nb3 g6 8. c4
Bg7 9. Nc3 O-O 10. Bf4 d5 11. exd5 exd5 12. c5 Ne5 13. Re1 N7c6 14. Bf1 Be6 15.
Nd4 Nxd4 16. Bxe5 Bxe5 17. Rxe5 Nc6 18. Re1 Qa5 19. Nxd5 Rfd8 20. Nf6+ Kg7 21.
Qf3 Qxc5 22. Ne4 Qd4 23. b3 Bd5 24. Qe3 Qxe3 25. Rxe3 Nb4 26. Re2 Rac8 27. f3
h6 28. Rae1 Bxe4 29. fxe4 Rc2 30. Rxc2 Nxc2 31. Re2 Nd4 32. Re3 Kf6 33. Bc4 Rc8
34. e5+ Ke7 35. Re4 Ne6 36. a4 Rc5 37. b4 Ng5 38. Rd4 Rxe5 39. Bd5 Ne6 40. Rd2
b6 41. Bc6 a5 42. Rd7+ Kf6 43. Rb7 axb4 44. Rxb6 b3 45. Bd7 Re1+ 46. Kf2 Rb1
47. a5 b2 48. a6 Ke5 49. Be8 Ng5 50. Bc6 Ra1 51. Bb7 Ra2 52. Ke3 Ne6 53. Kd3
Nc5+ 54. Kc2 Na4 55. Rb4 b1=Q+ 56. Kxb1 Nc3+ 57. Kc1 Rxa6 58. Kd2 Ra3 59. Bf3
f5 60. Rb6 g5 61. Rxh6 g4 62. Bb7 Ne4+ 63. Bxe4 Kxe4 64. Re6+ Kd4 65. Ke2 Ra2+
66. Kf1 f4 67. Re8 f3 68. gxf3 gxf3 1/2-1/2

[Event "XI Continental-ch America 2016"]
[Site "San Salvador"]
[Date "2016.05.30"]
[Round "4"]
[White "Cordova, Emilio"]
[Black "Kevel, Oliva"]
[Result "1-0"]
[ECO "A05"]
[WhiteElo "2602"]
[BlackElo "2500"]
[PlyCount "71"]
[EventDate "2016.??.??"]
[EventCountry "ESA"]
[TimeControl "40/5400+30:1800+30"]
[WhiteClock "0:11:52"]
[BlackClock "0:13:49"]

1. Nf3 {[%emt 0:00:00]} Nf6 {[%emt 0:00:00]} 2. g3 {[%emt 0:00:00]} g6 {
[%emt 0:00:28]} 3. Bg2 {[%emt 0:00:00]} Bg7 {[%emt 0:00:03]} 4. b3 {[%emt 0:00:
19]} Ne4 {[%emt 0:01:40]} 5. c3 {[%emt 0:02:40]} O-O {[%emt 0:00:24]} 6. Bb2 {
[%emt 0:05:45]} d5 {[%emt 0:00:09]} 7. d3 {[%emt 0:00:05]} Nd6 {[%emt 0:00:12]}
8. O-O {[%emt 0:10:08]} c5 {[%emt 0:03:01]} 9. Re1 {[%emt 0:09:34]} e5 {
[%emt 0:06:36]} 10. Nfd2 {[%emt 0:03:52]} Be6 {[%emt 0:00:20]} 11. c4 {[%emt 0:
00:10]} d4 {[%emt 0:00:17]} 12. b4 {[%emt 0:00:37]} cxb4 {[%emt 0:19:30]} 13.
a3 {[%emt 0:14:23]} Nc6 {[%emt 0:08:20]} 14. Nb3 {[%emt 0:01:54]} Qc7 {[%emt 0:
06:45]} 15. Nc5 {[%emt 0:03:28]} Bc8 {[%emt 0:03:03]} 16. axb4 {[%emt 0:00:54]}
Nxb4 {[%emt 0:00:26]} 17. Ba3 {[%emt 0:00:09]} Qxc5 {[%emt 0:02:27]} 18. Qb3 {
[%emt 0:01:28]} Qc7 {[%emt 0:06:48]} 19. Bxb4 {[%emt 0:02:30]} Re8 {[%emt 0:00:
15]} 20. Nd2 {[%emt 0:01:00]} a6 {[%emt 0:04:17]} 21. Reb1 {[%emt 0:05:02]} Ra7
{[%emt 0:07:07]} 22. Ba5 {[%emt 0:01:43]} Qb8 {[%emt 0:02:03]} 23. Bb6 {
[%emt 0:03:50]} Ra8 {[%emt 0:00:05]} 24. Bc5 {[%emt 0:08:08]} Bf8 {[%emt 0:03:
25]} 25. h3 {[%emt 0:04:00]} Qc7 {[%emt 0:00:41]} 26. Bb6 {[%emt 0:02:09]} Qd7
{[%emt 0:01:20]} 27. Ra5 {[%emt 0:01:13]} Kg7 {[%emt 0:01:06]} 28. Rc5 {
[%emt 0:01:02]} Re7 {[%emt 0:00:56]} 29. Rd5 {[%emt 0:02:29]} Qe6 {[%emt 0:00:
32]} 30. Bc5 {[%emt 0:02:54]} Rd7 {[%emt 0:06:39]} 31. Qa3 {[%emt 0:00:12]} a5
{[%emt 0:01:45]} 32. Rb6 {[%emt 0:01:09]} Ra6 {[%emt 0:01:30]} 33. Rxa6 {
[%emt 0:00:06]} bxa6 {[%emt 0:00:03]} 34. Ne4 {[%emt 0:00:05]} Bb7 {[%emt 0:00:
58]} 35. Nxd6 {[%emt 0:02:40]} Rc7 36. Ne4 1-0

[Event "XI Continental-ch America 2016"]
[Site "San Salvador"]
[Date "2016.05.30"]
[Round "4"]
[White "Gemy, Jose"]
[Black "Kovalyov, Anton"]
[Result "0-1"]
[ECO "A05"]
[WhiteElo "2410"]
[BlackElo "2602"]
[PlyCount "84"]
[EventDate "2016.??.??"]
[EventCountry "ESA"]
[TimeControl "40/5400+30:1800+30"]
[WhiteClock "0:03:13"]
[BlackClock "0:24:13"]

1. Nf3 {[%emt 0:00:06]} Nf6 {[%emt 0:00:00]} 2. g3 {[%emt 0:01:37]} d5 {
[%emt 0:00:00]} 3. Bg2 {[%emt 0:00:07]} c6 {[%emt 0:02:43]} 4. O-O {[%emt 0:00:
07]} Bf5 {[%emt 0:00:37]} 5. d3 {[%emt 0:02:08]} h6 {[%emt 0:00:31]} 6. Nbd2 {
[%emt 0:00:20]} e6 {[%emt 0:00:22]} 7. c4 {[%emt 0:01:33]} Nbd7 {[%emt 0:01:21]
} 8. b3 {[%emt 0:00:44]} Be7 {[%emt 0:00:15]} 9. Bb2 {[%emt 0:00:04]} O-O {
[%emt 0:00:07]} 10. a3 {[%emt 0:00:48]} a5 {[%emt 0:00:24]} 11. Rc1 {[%emt 0:
00:27]} Bh7 {[%emt 0:02:42]} 12. Rc2 {[%emt 0:01:19]} Bd6 {[%emt 0:01:34]} 13.
Qa1 {[%emt 0:01:45]} Re8 {[%emt 0:01:00]} 14. Ne5 {[%emt 0:01:15]} Nxe5 {
[%emt 0:11:10]} 15. Bxe5 {[%emt 0:00:07]} Bf8 {[%emt 0:00:25]} 16. Nf3 {
[%emt 0:11:07]} Nd7 {[%emt 0:01:24]} 17. Bb2 {[%emt 0:02:30]} Nc5 {[%emt 0:05:
02]} 18. Qa2 {[%emt 0:10:21]} Qb6 {[%emt 0:04:02]} 19. Nd2 {[%emt 0:00:49]}
Rad8 {[%emt 0:08:12]} 20. cxd5 {[%emt 0:02:25]} cxd5 {[%emt 0:00:39]} 21. Rfc1
{[%emt 0:06:45]} Na6 {[%emt 0:00:41]} 22. Qa1 {[%emt 0:02:05]} f6 {[%emt 0:02:
59]} 23. Bd4 {[%emt 0:06:21]} Qd6 {[%emt 0:04:17]} 24. Bc3 {[%emt 0:00:11]}
Qxa3 {[%emt 0:01:37]} 25. Ra2 {[%emt 0:01:40]} Qd6 {[%emt 0:00:27]} 26. Rxa5 {
[%emt 0:04:22]} Rc8 {[%emt 0:00:55]} 27. e4 {[%emt 0:05:16]} Nb4 {[%emt 0:05:
16]} 28. Bf1 {[%emt 0:04:00]} Nc6 {[%emt 0:01:15]} 29. Rb5 {[%emt 0:01:22]} Ra8
{[%emt 0:02:17]} 30. Qb1 {[%emt 0:00:19]} Qd7 {[%emt 0:00:08]} 31. exd5 {
[%emt 0:01:36]} exd5 {[%emt 0:12:20]} 32. Bg2 {[%emt 0:00:44]} Nd4 {[%emt 0:00:
18]} 33. Bxd5+ {[%emt 0:09:38]} Kh8 {[%emt 0:00:09]} 34. Bxd4 {[%emt 0:00:32]}
Qxb5 {[%emt 0:00:06]} 35. Be4 {[%emt 0:01:55]} Rad8 {[%emt 0:00:21]} 36. Bxh7 {
[%emt 0:01:37]} Kxh7 {[%emt 0:00:08]} 37. Rc4 {[%emt 0:00:17]} Qf5 {[%emt 0:00:
22]} 38. Bb6 {[%emt 0:02:51]} Rxd3 {[%emt 0:03:17]} 39. Rd4 {[%emt 0:06:12]}
Rf3 {[%emt 0:01:45]} 40. Ne4 {[%emt 0:00:29]} Re6 {[%emt 0:01:33]} 41. Ba7 {
[%emt 0:39:17]} b6 {[%emt 0:32:48]} 42. g4 {[%emt 0:00:39]} Qg6 {[%emt 0:01:18]
} 0-1

[Event "XI Continental-ch America 2016"]
[Site "San Salvador"]
[Date "2016.05.30"]
[Round "4"]
[White "Morovic Fernandez, Ivan"]
[Black "Mareco, Sandro"]
[Result "1/2-1/2"]
[ECO "B90"]
[WhiteElo "2573"]
[BlackElo "2625"]
[PlyCount "41"]
[EventDate "2016.??.??"]
[EventCountry "ESA"]
[TimeControl "40/5400+30:1800+30"]
[WhiteClock "0:23:49"]
[BlackClock "0:29:09"]

1. e4 {[%emt 0:00:00]} c5 {[%emt 0:00:00]} 2. Nf3 {[%emt 0:00:00]} d6 {[%emt 0:
00:00]} 3. d4 {[%emt 0:00:00]} cxd4 {[%emt 0:00:00]} 4. Nxd4 {[%emt 0:00:00]}
Nf6 {[%emt 0:00:00]} 5. Nc3 {[%emt 0:00:00]} a6 {[%emt 0:00:00]} 6. h3 {
[%emt 0:00:31]} e6 {[%emt 0:00:15]} 7. g4 {[%emt 0:00:18]} Nfd7 {[%emt 0:01:24]
} 8. Bg2 {[%emt 0:01:16]} Nc6 {[%emt 0:00:07]} 9. Be3 {[%emt 0:00:29]} Be7 {
[%emt 0:00:04]} 10. h4 {[%emt 0:03:15]} O-O {[%emt 0:03:52]} 11. g5 {[%emt 0:
01:24]} Rb8 {[%emt 0:00:22]} 12. f4 {[%emt 0:07:23]} Re8 {[%emt 0:07:24]} 13.
Qd2 {[%emt 0:05:56]} Nxd4 {[%emt 0:00:50]} 14. Bxd4 {[%emt 0:02:56]} b5 {
[%emt 0:00:36]} 15. O-O-O {[%emt 0:05:00]} Qc7 {[%emt 0:30:44]} 16. f5 {
[%emt 0:22:54]} Ne5 {[%emt 0:12:39]} 17. f6 {[%emt 0:07:53]} Bf8 {[%emt 0:03:
45]} 18. Ne2 {[%emt 0:03:09]} Nc4 {[%emt 0:00:52]} 19. Qd3 {[%emt 0:07:06]} e5
{[%emt 0:02:23]} 20. Bf2 {[%emt 0:01:35]} Qa5 {[%emt 0:05:34]} 21. Kb1 {
[%emt 0:05:36]} 1/2-1/2

[Event "XI Continental-ch America 2016"]
[Site "San Salvador"]
[Date "2016.05.30"]
[Round "4"]
[White "Lenderman, Aleksandr"]
[Black "Flores, Diego"]
[Result "1-0"]
[ECO "A61"]
[WhiteElo "2614"]
[BlackElo "2592"]
[PlyCount "67"]
[EventDate "2016.??.??"]
[EventCountry "ESA"]
[TimeControl "40/5400+30:1800+30"]
[WhiteClock "0:43:36"]
[BlackClock "0:00:32"]

1. d4 {[%emt 0:00:00]} Nf6 {[%emt 0:00:37]} 2. c4 {[%emt 0:00:00]} e6 {[%emt 0:
01:13]} 3. Nc3 {[%emt 0:00:00]} c5 {[%emt 0:01:04]} 4. d5 {[%emt 0:00:00]} exd5
{[%emt 0:00:05]} 5. cxd5 {[%emt 0:00:00]} d6 {[%emt 0:00:06]} 6. Nf3 {[%emt 0:
00:00]} g6 {[%emt 0:00:14]} 7. Bf4 {[%emt 0:00:00]} a6 {[%emt 0:01:29]} 8. a4 {
[%emt 0:00:06]} Bg7 {[%emt 0:00:07]} 9. h3 {[%emt 0:00:19]} O-O {[%emt 0:00:17]
} 10. e3 {[%emt 0:00:05]} Re8 {[%emt 0:00:11]} 11. Bd3 {[%emt 0:00:09]} Nh5 {
[%emt 0:10:18]} 12. Bh2 {[%emt 0:00:19]} Nd7 {[%emt 0:03:14]} 13. Be2 {[%emt 0:
00:09]} f5 {[%emt 0:16:15]} 14. Nd2 {[%emt 0:05:01]} Ne5 {[%emt 0:21:34]} 15.
Bxe5 {[%emt 0:06:57]} Bxe5 {[%emt 0:09:00]} 16. Bxh5 {[%emt 0:00:39]} gxh5 {
[%emt 0:00:35]} 17. Qxh5 {[%emt 0:00:34]} b6 {[%emt 0:15:15]} 18. Nc4 {[%emt 0:
13:37]} Bxc3+ {[%emt 0:04:55]} 19. bxc3 {[%emt 0:00:16]} Re4 {[%emt 0:00:06]}
20. Nd2 {[%emt 0:01:44]} Rh4 {[%emt 0:00:32]} 21. Qf3 {[%emt 0:00:42]} Ra7 {
[%emt 0:00:30]} 22. g3 {[%emt 0:01:41]} Rh6 {[%emt 0:02:21]} 23. Qf4 {[%emt 0:
00:33]} Qf6 {[%emt 0:00:34]} 24. Rb1 {[%emt 0:07:43]} b5 {[%emt 0:01:24]} 25.
axb5 {[%emt 0:05:18]} axb5 {[%emt 0:00:15]} 26. Rxb5 {[%emt 0:01:51]} Kg7 {
[%emt 0:02:59]} 27. O-O {[%emt 0:06:12]} Rxh3 {[%emt 0:06:15]} 28. Rb8 {
[%emt 0:03:36]} Bd7 {[%emt 0:02:00]} 29. Rfb1 {[%emt 0:01:43]} Rh6 {[%emt 0:00:
23]} 30. R8b7 {[%emt 0:00:54]} Rxb7 {[%emt 0:00:37]} 31. Rxb7 {[%emt 0:00:05]}
Qe7 {[%emt 0:00:32]} 32. Nc4 {[%emt 0:00:56]} Qf7 {[%emt 0:00:25]} 33. Nxd6 {
[%emt 0:01:54]} Qh5 {[%emt 0:00:36]} 34. Nxf5+ {[%emt 0:00:21]} 1-0